fUSD/lending_fUSD_20241225
["ID","MTS","AMOUNT","RATE_DAILY","PERIOD"]
[346634535,1735134632214,-494.46,0.00010779,2]
[346634536,1735134632225,-80.29252682,0.00010779,2]
[346634537,1735134632314,-410.00747318,0.00010779,2]
[346634538,1735134632325,-286.50396561,0.0001078,2]
[346634539,1735134632378,-216.62603439,0.0001078,2]
[346634540,1735134632388,-283.37396561,0.0001078,2]
[346634541,1735134632400,-856.19805047,0.0001078,2]
[346634542,1735134632410,-498.85,0.0001078,2]
[346634543,1735134632420,-502.19,0.0001078,2]
[346634544,1735134632429,-493.6,0.0001078,2]
[346634545,1735134632439,-506.75,0.0001078,2]
[346634546,1735134632448,-3200.0,0.000108,3]
[346634547,1735134632457,-800.0,0.00010876,2]
[346634548,1735134632467,-2100.0,0.00010876,2]
[346634549,1735134632476,-500.0,0.00010876,2]
[346634550,1735134632485,-2890.39425032,0.0001089,2]
[346634551,1735134632495,-1652.1395,0.0001089,2]
[346634552,1735134632504,-24851.6487,0.0001089,2]
[346634553,1735134632514,-9805.0099,0.0001089,2]
[346634554,1735134632525,-8087.6584,0.0001089,2]
[346634555,1735134632534,-2500.0,0.0001089,2]
[346634556,1735134632545,-4800.0,0.000109,3]
[346634557,1735134632555,-2533.85,0.000109,2]
[346634558,1735134632564,-1762.96273436,0.00010912,2]
[346634559,1735134632573,-420.0,0.00010971,2]
[346634560,1735134632582,-500.0,0.00010989,2]
[346634561,1735134632591,-500.0,0.00010989,2]
[346634562,1735134632600,-596.04,0.00010989,2]
[346634563,1735134632610,-662.11,0.00010989,2]
[346634564,1735134632619,-500.0,0.00010989,2]
[346634565,1735134632628,-500.0,0.00010989,2]
[346634566,1735134632638,-966.04,0.00010989,2]
[346634567,1735134632648,-580.71,0.00010989,2]
[346634568,1735134632657,-2825.29,0.00010989,2]
[346634569,1735134632666,-500.0,0.00010989,2]
[346634570,1735134632675,-736.24,0.00010989,2]
[346634571,1735134632684,-676.28,0.00010989,2]
[346634572,1735134632694,-500.0,0.00010989,2]
[346634573,1735134632703,-500.0,0.00010989,2]
[346634574,1735134632712,-500.0,0.00010989,2]
[346634575,1735134632721,-735.59,0.00010989,2]
[346634576,1735134632731,-529.28,0.00010989,2]
[346634577,1735134632740,-500.0,0.00010989,2]
[346634578,1735134632749,-549.15,0.00010989,2]
[346634579,1735134632759,-500.0,0.00010989,2]
[346634580,1735134632767,-1165.59,0.00010989,2]
[346634581,1735134632777,-1197.84,0.00010989,2]
[346634582,1735134632787,-601.94,0.00010989,2]
[346634583,1735134632796,-500.0,0.00010989,2]
[346634584,1735134632806,-2106.14,0.00010989,2]
[346634585,1735134632815,-500.0,0.00010989,2]
[346634586,1735134632824,-179.50137204,0.00010989,2]
[346634587,1735134632834,-1444.9,0.00010989,2]
[346634588,1735134632843,-1886.67,0.00010989,2]
[346634589,1735134632852,-500.0,0.00010989,2]
[346634590,1735134632861,-500.0,0.00010989,2]
[346634591,1735134632871,-764.44,0.00010989,2]
[346634592,1735134632881,-500.0,0.00010989,2]
[346634593,1735134632890,-603.5,0.00010989,2]
[346634594,1735134632900,-500.0,0.00010989,2]
[346634595,1735134632911,-1447.03,0.00010989,2]
[346634596,1735134632922,-3422.09,0.00010989,2]
[346634597,1735134632931,-578.37,0.00010989,2]
[346634598,1735134632941,-4135.31,0.00010989,2]
[346634599,1735134632951,-676.92,0.00010989,2]
[346634600,1735134632961,-913.93,0.00010989,2]
[346634601,1735134632970,-883.99,0.00010989,2]
[346634602,1735134632980,-1409.53,0.00010989,2]
[346634603,1735134632991,-500.0,0.00010989,2]
[346634604,1735134633001,-655.07,0.00010989,2]
[346634605,1735134633010,-500.0,0.00010989,2]
[346634606,1735134633020,-627.18,0.00010989,2]
[346634607,1735134633029,-500.0,0.00010989,2]
[346634608,1735134633039,-1403.0,0.00010989,2]
[346634609,1735134633051,-500.0,0.00010989,2]
[346634610,1735134633060,-4604.99,0.00010989,2]
[346634611,1735134633072,-500.0,0.00010989,2]
[346634612,1735134633082,-500.0,0.00010989,2]
[346634613,1735134633091,-500.0,0.00010989,2]
[346634614,1735134633101,-500.0,0.00010989,2]
[346634615,1735134633111,-500.0,0.00010989,2]
[346634616,1735134633121,-500.0,0.00010989,2]
[346634617,1735134633131,-500.0,0.00010989,2]
[346634618,1735134633140,-500.0,0.00010989,2]
[346634619,1735134633149,-508.4,0.00010989,2]
[346634620,1735134633159,-500.0,0.00010989,2]
[346634621,1735134633168,-500.0,0.00010989,2]
[346634622,1735134633177,-3165.65,0.00010989,2]
[346634623,1735134633187,-1017.05,0.00010989,2]
[346634624,1735134633196,-500.0,0.00010989,2]
[346634625,1735134633206,-1134.7,0.00010989,2]
[346634626,1735134633215,-500.0,0.00010989,2]
[346634627,1735134633225,-536.66,0.00010989,2]
[346634628,1735134633234,-500.0,0.00010989,2]
[346634629,1735134633243,-500.0,0.00010989,2]
[346634630,1735134633253,-14329.26809281,0.0001099,2]
[346634631,1735134633266,-614.72573488,0.0001099,2]
[346634632,1735134633314,-807.70277775,0.0001099,2]
[346634633,1735134633339,-42585.0887766,0.0001099,2]
[346634634,1735134633350,-23477.56739431,0.0001099,2]
[346634635,1735134633362,-47892.86121367,0.0001099,2]
[346634645,1735134637563,-500.0,0.00010989,2]
[346634646,1735134637573,-561.25,0.00010989,2]
[346634647,1735134637582,-1676.34,0.00010989,2]
[346634648,1735134637592,-385.95115014,0.00010989,2]
[346634649,1735134637650,-114.04884986,0.00010989,2]
[346634650,1735134637659,-4885.95114964,0.0001099,2]
[346634651,1735134637671,-7771.62024578,0.0001099,2]
[346634652,1735134637682,-24654.61407904,0.0001099,2]
[346634671,1735134639764,-634.53,0.00010989,2]
[346634672,1735134639774,-498.88,0.00010989,2]
[346634673,1735134639784,-280.16563395,0.0001099,2]
[346634674,1735134639795,-466.72269981,0.0001099,2]
[346634675,1735134639941,-361.54,0.0001099,2]
[346634690,1735134642630,-500.0,0.00010989,2]
[346634692,1735134642639,-134.13554686,0.0001099,2]
[346634703,1735134642856,-854.60872885,0.0001099,2]
[346634716,1735134645811,-2500.0,0.0001089,2]
[346634717,1735134645821,-571.21,0.00010989,2]
[346634718,1735134645833,-15.67552804,0.0001099,2]
[346634719,1735134645900,-3488.5851,0.0001099,2]
[346634721,1735134645915,-8379.16729801,0.0001099,2]
[346634723,1735134645924,-22560.8200481,0.00010995,2]
[346634725,1735134645935,-500.0,0.00010997,2]
[346634727,1735134645945,-500.0,0.00010997,2]
[346634729,1735134645955,-500.0,0.00010997,2]
[346634731,1735134645966,-500.0,0.00010997,2]
[346634733,1735134645978,-500.0,0.00010997,2]
[346634736,1735134645993,-500.0,0.00010997,2]
[346634738,1735134646004,-234.88,0.00010997,2]
[346634740,1735134646015,-500.0,0.00010997,2]
[346634742,1735134646025,-500.0,0.00010997,2]
[346634744,1735134646036,-222.39,0.00010997,2]
[346634746,1735134646047,-500.0,0.00010997,2]
[346634747,1735134646058,-500.0,0.00010997,2]
[346634748,1735134646072,-500.0,0.00010997,2]
[346634749,1735134646083,-500.0,0.00010997,2]
[346634750,1735134646094,-500.0,0.00010997,2]
[346634751,1735134646106,-500.0,0.00010997,2]
[346634752,1735134646117,-500.0,0.00010997,2]
[346634753,1735134646127,-253.0901732,0.00010997,2]
[346634754,1735134646139,-500.0,0.00010997,2]
[346634755,1735134646150,-77.16540938,0.00010997,2]
[346634756,1735134646165,-600.80459062,0.00010997,2]
[346634757,1735134646175,-500.0,0.00010997,2]
[346634758,1735134646187,-500.0,0.00010997,2]
[346634759,1735134646199,-500.0,0.00010997,2]
[346634760,1735134646209,-500.0,0.00010997,2]
[346634761,1735134646220,-500.0,0.00010997,2]
[346634762,1735134646231,-500.0,0.00010997,2]
[346634763,1735134646241,-337.79540196,0.00010997,2]
[346634764,1735134646253,-500.0,0.00010997,2]
[346634765,1735134646263,-500.0,0.00010997,2]
[346634766,1735134646274,-500.0,0.00010997,2]
[346634767,1735134646284,-500.0,0.00010997,2]
[346634768,1735134646296,-500.0,0.00010997,2]
[346634769,1735134646307,-500.0,0.00010997,2]
[346634770,1735134646318,-500.0,0.00010997,2]
[346634771,1735134646328,-500.0,0.00010997,2]
[346634772,1735134646339,-500.0,0.00010997,2]
[346634773,1735134646350,-500.0,0.00010997,2]
[346634774,1735134646361,-500.0,0.00010997,2]
[346634775,1735134646372,-500.0,0.00010997,2]
[346634776,1735134646383,-2326.69,0.00010997,2]
[346634777,1735134646395,-500.0,0.00010997,2]
[346634778,1735134646405,-500.0,0.00010997,2]
[346634779,1735134646416,-703.59,0.00010997,2]
[346634780,1735134646426,-500.0,0.00010997,2]
[346634781,1735134646437,-500.0,0.00010997,2]
[346634782,1735134646447,-500.0,0.00010997,2]
[346634783,1735134646458,-500.0,0.00010997,2]
[346634784,1735134646469,-1066.8,0.00010997,2]
[346634785,1735134646480,-500.0,0.00010997,2]
[346634786,1735134646490,-1752.4,0.00010997,2]
[346634787,1735134646501,-547.06830554,0.00010997,2]
[346634788,1735134646511,-517.58955278,0.00010997,2]
[346634789,1735134646521,-586.0,0.00010997,2]
[346634790,1735134646531,-500.0,0.00010997,2]
[346634791,1735134646542,-599.28,0.00010997,2]
[346634792,1735134646553,-500.0,0.00010997,2]
[346634793,1735134646563,-701.89,0.00010997,2]
[346634794,1735134646573,-500.0,0.00010997,2]
[346634795,1735134646584,-865.03750883,0.00010997,2]
[346634796,1735134646597,-599.89249117,0.00010997,2]
[346634797,1735134646607,-889.46,0.00010997,2]
[346634798,1735134646617,-500.0,0.00010997,2]
[346634799,1735134646627,-500.0,0.00010997,2]
[346634800,1735134646638,-500.0,0.00010997,2]
[346634801,1735134646648,-500.0,0.00010997,2]
[346634802,1735134646659,-500.0,0.00010997,2]
[346634803,1735134646669,-572.36,0.00010997,2]
[346634804,1735134646681,-500.0,0.00010997,2]
[346634805,1735134646691,-500.0,0.00010997,2]
[346634806,1735134646711,-500.0,0.00010997,2]
[346634807,1735134646721,-527.41,0.00010997,2]
[346634808,1735134646732,-500.0,0.00010997,2]
[346634809,1735134646742,-500.0,0.00010997,2]
[346634810,1735134646752,-687.71,0.00010997,2]
[346634811,1735134646763,-500.0,0.00010997,2]
[346634812,1735134646774,-550.91,0.00010997,2]
[346634813,1735134646784,-500.0,0.00010997,2]
[346634814,1735134646794,-500.0,0.00010997,2]
[346634815,1735134646805,-500.0,0.00010997,2]
[346634816,1735134646815,-500.0,0.00010997,2]
[346634817,1735134646826,-589.1,0.00010997,2]
[346634818,1735134646836,-500.0,0.00010997,2]
[346634819,1735134646846,-535.39,0.00010997,2]
[346634820,1735134646856,-760.05,0.00010997,2]
[346634821,1735134646867,-1409.0,0.00010997,2]
[346634822,1735134646877,-500.0,0.00010997,2]
[346634823,1735134646886,-2445.16,0.00010997,2]
[346634824,1735134646896,-500.0,0.00010997,2]
[346634825,1735134646907,-500.0,0.00010997,2]
[346634826,1735134646920,-500.0,0.00010997,2]
[346634827,1735134646931,-5633.72,0.00010997,2]
[346634828,1735134646942,-526.40732773,0.00010997,2]
[346634829,1735134646952,-500.0,0.00010997,2]
[346634830,1735134646963,-500.0,0.00010997,2]
[346634831,1735134646973,-1009.71,0.00010997,2]
[346634832,1735134646983,-500.0,0.00010997,2]
[346634833,1735134646994,-561.51,0.00010997,2]
[346634834,1735134647004,-500.0,0.00010997,2]
[346634835,1735134647015,-500.0,0.00010997,2]
[346634836,1735134647024,-931.77,0.00010997,2]
[346634837,1735134647035,-500.0,0.00010997,2]
[346634838,1735134647044,-500.0,0.00010997,2]
[346634839,1735134647056,-6465.32,0.00010997,2]
[346634840,1735134647066,-500.0,0.00010998,2]
[346634841,1735134647078,-702.09,0.00010998,2]
[346634842,1735134647088,-679.49,0.00010998,2]
[346634843,1735134647099,-500.0,0.00010998,2]
[346634844,1735134647109,-1274.99,0.00010998,2]
[346634845,1735134647119,-500.0,0.00010998,2]
[346634846,1735134647130,-1000.0,0.00010998,2]
[346634847,1735134647140,-745.74,0.00010998,2]
[346634848,1735134647150,-500.0,0.00010998,2]
[346634849,1735134647161,-2050.79,0.00010998,2]
[346634850,1735134647172,-712.17,0.00010998,2]
[346634851,1735134647182,-4551.50379028,0.00010998,2]
[346634854,1735134718779,4042.71403463,1e-05,2]
[346635103,1735135831954,-250.0,9.75e-05,2]
[346635104,1735135831965,-1000.0,9.885e-05,2]
[346635105,1735135831976,-411.71,9.976e-05,2]
[346635106,1735135831987,-300.0,9.999e-05,2]
[346635107,1735135831998,-499.2,0.0001,2]
[346635108,1735135832008,-395.00574988,0.0001,2]
[346635109,1735135832021,-111.56425012,0.0001,2]
[346635110,1735135832032,-503.78,0.0001,2]
[346635111,1735135832043,-505.26,0.0001,2]
[346635112,1735135832053,-496.96,0.0001,2]
[346635113,1735135832063,-493.76,0.0001,2]
[346635114,1735135832073,-503.3,0.0001,2]
[346635115,1735135832088,-506.93,0.0001,2]
[346635116,1735135832100,-502.98,0.0001,2]
[346635117,1735135832112,-501.55,0.0001,2]
[346635118,1735135832123,-494.76,0.0001,2]
[346635119,1735135832135,-229.15574988,0.0001,2]
[346635120,1735135832148,-263.95425012,0.0001,2]
[346635121,1735135832158,-490.27,0.0001,2]
[346635122,1735135832168,-361.97574688,0.0001,2]
[346635125,1735135832209,-132.01425312,0.0001,2]
[346635127,1735135832220,-495.82,0.0001,2]
[346635129,1735135832230,-272.16574688,0.0001,2]
[346635131,1735135832243,-230.08425312,0.0001,2]
[346635133,1735135832254,-499.81,0.0001,2]
[346635134,1735135832264,-491.57574688,0.0001,2]
[346635135,1735135832276,-13.58425312,0.0001,2]
[346635136,1735135832287,-505.07,0.0001,2]
[346635137,1735135832298,-81.34574688,0.0001,2]
[346635138,1735135832311,-413.21193929,0.0001,2]
[346635139,1735135832325,-7.70231383,0.0001,2]
[346635140,1735135832335,-496.37,0.0001,2]
[346635141,1735135832345,-496.01,0.0001,2]
[346635142,1735135832355,-495.8,0.0001,2]
[346635143,1735135832366,-500.02,0.0001,2]
[346635144,1735135832375,-426.40183007,0.0001,2]
[346635145,1735135832403,-69.70816993,0.0001,2]
[346635146,1735135832413,-189.96101007,0.0001,2]
[346635152,1735135837855,-311.72898993,0.0001,2]
[346635153,1735135837866,-503.38,0.0001,2]
[346635154,1735135837876,-259.2051129,0.0001,2]
[346635155,1735135837894,-234.5348871,0.0001,2]
[346635156,1735135837904,-498.28,0.0001,2]
[346635157,1735135837914,-495.91,0.0001,2]
[346635158,1735135837924,-145.40444596,0.0001,2]
[346635159,1735135838100,-362.03555404,0.0001,2]
[346635160,1735135838110,-501.72,0.0001,2]
[346635161,1735135838119,-496.12,0.0001,2]
[346635162,1735135838129,-495.15,0.0001,2]
[346635163,1735135838139,-497.61,0.0001,2]
[346635164,1735135838148,-329.75941396,0.0001,2]
[346635165,1735135838162,-161.86058604,0.0001,2]
[346635166,1735135838171,-239.74,0.00010084,2]
[346635167,1735135838180,-4458.37914025,0.00010115,2]
[346635168,1735135838189,-250.0,0.00010116,2]
[346635169,1735135838199,-250.0,0.00010118,2]
[346635170,1735135838208,-558.5,0.00010137,2]
[346635171,1735135838218,-163.17,0.0001015,2]
[346635172,1735135838227,-200.0,0.00010194,2]
[346635173,1735135838237,-435.12,0.00010253,2]
[346635174,1735135838246,-150.0,0.00010278,2]
[346635175,1735135838256,-11659.08893996,0.00010336,2]
[346635218,1735135840100,-12240.91106004,0.00010336,2]
[346635219,1735135840111,-150.0,0.000104,2]
[346635220,1735135840121,-512.21,0.00010441,2]
[346635221,1735135840130,-1100.0,0.000107,3]
[346635222,1735135840140,-437.22,0.000107,2]
[346635223,1735135840149,-150.0,0.000107,2]
[346635224,1735135840158,-1952.87,0.000107,2]
[346635225,1735135840167,-150.0,0.000107,2]
[346635226,1735135840177,-770.94,0.000107,2]
[346635227,1735135840186,-150.0,0.000107,2]
[346635228,1735135840195,-873.79,0.000107,2]
[346635229,1735135840204,-770.94,0.000107,2]
[346635230,1735135840213,-2200.0,0.000108,3]
[346635231,1735135840222,-437.22,0.000108,2]
[346635232,1735135840232,-770.94,0.000108,2]
[346635233,1735135840241,-150.0,0.000108,2]
[346635234,1735135840250,-150.0,0.000108,2]
[346635235,1735135840259,-977.72,0.000108,2]
[346635236,1735135840270,-800.0,0.00010876,2]
[346635237,1735135840280,-2100.0,0.00010876,2]
[346635238,1735135840289,-216.72523126,0.00010899,2]
[346635239,1735135840299,-9005.77,0.000109,2]
[346635240,1735135840309,-3300.0,0.000109,3]
[346635241,1735135840324,-155.53893932,0.000109,2]
[346635242,1735135840333,-500.0,0.00010989,2]
[346635243,1735135840343,-500.0,0.00010989,2]
[346635244,1735135840353,-322.05936392,0.00010989,2]
[346635245,1735135840363,-500.0,0.00010989,2]
[346635246,1735135840372,-500.0,0.00010989,2]
[346635247,1735135840382,-500.0,0.00010989,2]
[346635248,1735135840393,-500.0,0.00010989,2]
[346635249,1735135840402,-500.0,0.00010989,2]
[346635250,1735135840411,-703.94,0.00010989,2]
[346635251,1735135840420,-396.54055795,0.00010989,2]
[346635252,1735135840429,-500.0,0.00010989,2]
[346635253,1735135840439,-500.0,0.00010989,2]
[346635254,1735135840448,-500.0,0.00010989,2]
[346635255,1735135840457,-500.0,0.00010989,2]
[346635256,1735135840467,-500.0,0.00010989,2]
[346635257,1735135840475,-500.0,0.00010989,2]
[346635258,1735135840485,-500.0,0.00010989,2]
[346635259,1735135840494,-500.0,0.00010989,2]
[346635260,1735135840503,-631.67,0.00010989,2]
[346635261,1735135840513,-446.58778435,0.00010989,2]
[346635262,1735135840522,-500.0,0.00010989,2]
[346635263,1735135840531,-500.0,0.00010989,2]
[346635264,1735135840541,-500.0,0.00010989,2]
[346635265,1735135840550,-500.0,0.00010989,2]
[346635266,1735135840561,-500.0,0.00010989,2]
[346635267,1735135840571,-500.0,0.00010989,2]
[346635268,1735135840581,-234.70312454,0.00010989,2]
[346635269,1735135840590,-500.0,0.00010989,2]
[346635270,1735135840601,-500.0,0.00010989,2]
[346635271,1735135840610,-500.0,0.00010989,2]
[346635272,1735135840621,-500.0,0.00010989,2]
[346635273,1735135840631,-500.0,0.00010989,2]
[346635274,1735135840641,-500.0,0.00010989,2]
[346635275,1735135840650,-500.0,0.00010989,2]
[346635276,1735135840661,-500.0,0.00010989,2]
[346635277,1735135840670,-500.0,0.00010989,2]
[346635278,1735135840679,-500.0,0.00010989,2]
[346635279,1735135840688,-646.61,0.00010989,2]
[346635280,1735135840697,-500.0,0.00010989,2]
[346635281,1735135840706,-500.0,0.00010989,2]
[346635282,1735135840716,-500.0,0.00010989,2]
[346635283,1735135840725,-528.81,0.00010989,2]
[346635284,1735135840735,-500.0,0.00010989,2]
[346635285,1735135840744,-500.0,0.00010989,2]
[346635286,1735135840753,-500.0,0.0001099,2]
[346635287,1735135840763,-500.0,0.0001099,2]
[346635288,1735135840772,-732.59,0.0001099,2]
[346635289,1735135840782,-1386.73,0.0001099,2]
[346635290,1735135840791,-554.27,0.0001099,2]
[346635291,1735135840801,-648.71,0.0001099,2]
[346635292,1735135840810,-1434.33,0.0001099,2]
[346635293,1735135840820,-500.0,0.0001099,2]
[346635294,1735135840829,-500.0,0.0001099,2]
[346635295,1735135840839,-4413.11,0.0001099,2]
[346635296,1735135840850,-500.0,0.0001099,2]
[346635297,1735135840859,-500.0,0.0001099,2]
[346635298,1735135840869,-500.0,0.0001099,2]
[346635299,1735135840878,-500.0,0.0001099,2]
[346635300,1735135840889,-500.0,0.0001099,2]
[346635301,1735135840898,-3033.75,0.0001099,2]
[346635302,1735135840907,-500.0,0.00010991,2]
[346635303,1735135840917,-500.0,0.00010991,2]
[346635304,1735135840926,-500.0,0.00010991,2]
[346635305,1735135840935,-329.85284839,0.00010991,2]
[346635306,1735135840945,-500.0,0.00010991,2]
[346635307,1735135840954,-500.0,0.00010991,2]
[346635308,1735135840963,-500.0,0.00010991,2]
[346635309,1735135840973,-500.0,0.00010991,2]
[346635310,1735135840982,-500.0,0.00010991,2]
[346635311,1735135840991,-481.23,0.00010991,2]
[346635312,1735135841001,-500.0,0.00010991,2]
[346635313,1735135841011,-500.0,0.00010991,2]
[346635314,1735135841021,-500.0,0.00010991,2]
[346635315,1735135841031,-500.0,0.00010991,2]
[346635316,1735135841040,-500.0,0.00010991,2]
[346635317,1735135841049,-500.0,0.00010991,2]
[346635318,1735135841058,-500.0,0.00010991,2]
[346635319,1735135841068,-500.0,0.00010991,2]
[346635320,1735135841078,-228.63,0.00010991,2]
[346635321,1735135841088,-500.0,0.00010991,2]
[346635322,1735135841097,-500.0,0.00010991,2]
[346635323,1735135841107,-500.0,0.00010991,2]
[346635324,1735135841117,-500.0,0.00010991,2]
[346635325,1735135841127,-500.0,0.00010991,2]
[346635326,1735135841136,-500.0,0.00010991,2]
[346635327,1735135841146,-634.22690496,0.00010991,2]
[346635328,1735135841156,-500.0,0.00010991,2]
[346635329,1735135841165,-500.0,0.00010991,2]
[346635330,1735135841176,-649.72,0.00010991,2]
[346635331,1735135841186,-500.0,0.00010991,2]
[346635332,1735135841196,-500.0,0.00010991,2]
[346635333,1735135841206,-500.0,0.00010991,2]
[346635334,1735135841216,-500.0,0.00010991,2]
[346635335,1735135841227,-500.0,0.00010991,2]
[346635336,1735135841236,-500.0,0.00010991,2]
[346635337,1735135841246,-500.0,0.00010991,2]
[346635338,1735135841256,-500.0,0.00010991,2]
[346635339,1735135841269,-500.0,0.00010991,2]
[346635340,1735135841279,-500.0,0.00010991,2]
[346635341,1735135841289,-500.0,0.00010991,2]
[346635342,1735135841299,-500.0,0.00010991,2]
[346635343,1735135841310,-500.0,0.00010991,2]
[346635344,1735135841324,-500.0,0.00010991,2]
[346635345,1735135841333,-500.0,0.00010991,2]
[346635346,1735135841342,-500.0,0.00010991,2]
[346635347,1735135841352,-500.0,0.00010991,2]
[346635348,1735135841363,-514.3,0.00010991,2]
[346635349,1735135841373,-500.0,0.00010991,2]
[346635350,1735135841383,-967.64,0.00010991,2]
[346635351,1735135841395,-500.0,0.00010991,2]
[346635352,1735135841405,-500.0,0.00010991,2]
[346635353,1735135841415,-538.11,0.00010991,2]
[346635354,1735135841425,-608.09,0.00010991,2]
[346635355,1735135841435,-925.78,0.00010991,2]
[346635356,1735135841445,-500.0,0.00010991,2]
[346635357,1735135841454,-500.0,0.00010991,2]
[346635358,1735135841464,-500.0,0.00010991,2]
[346635359,1735135841474,-2707.56,0.00010991,2]
[346635360,1735135841484,-500.0,0.00010991,2]
[346635361,1735135841493,-500.0,0.00010991,2]
[346635362,1735135841503,-500.0,0.00010991,2]
[346635363,1735135841513,-581.77,0.00010991,2]
[346635364,1735135841523,-892.95,0.00010991,2]
[346635365,1735135841532,-500.0,0.00010991,2]
[346635366,1735135841541,-500.0,0.00010991,2]
[346635367,1735135841551,-6195.93,0.00010991,2]
[346635368,1735135841560,-1736.3,0.00010991,2]
[346635369,1735135841570,-500.0,0.00010991,2]
[346635370,1735135841579,-500.0,0.00010991,2]
[346635371,1735135841589,-1679.38,0.00010991,2]
[346635372,1735135841599,-500.0,0.00010991,2]
[346635373,1735135841608,-500.0,0.00010991,2]
[346635374,1735135841618,-648.1,0.00010991,2]
[346635375,1735135841627,-500.0,0.00010991,2]
[346635376,1735135841636,-2229.74,0.00010991,2]
[346635377,1735135841646,-672.84,0.00010991,2]
[346635378,1735135841655,-500.0,0.00010991,2]
[346635379,1735135841665,-585.06654328,0.00010991,2]
[346635380,1735135841674,-599.45597124,0.00010991,2]
[346635381,1735135841688,-105.48402876,0.00010991,2]
[346635382,1735135841698,-500.0,0.00010991,2]
[346635383,1735135841707,-273.79819385,0.00010991,2]
[346635384,1735135841719,-233.43180615,0.00010991,2]
[346635385,1735135841728,-161.95319385,0.00010991,2]
[346635386,1735135841759,-512.32680615,0.00010991,2]
[346635387,1735135841769,-574.31,0.00010991,2]
[346635388,1735135841779,-651.18,0.00010991,2]
[346635389,1735135841789,-500.0,0.00010991,2]
[346635390,1735135841799,-437.49423468,0.00010991,2]
[346635391,1735135841808,-500.0,0.00010991,2]
[346635392,1735135841818,-526.27,0.00010991,2]
[346635393,1735135841828,-532.3,0.00010991,2]
[346635394,1735135841838,-852.4,0.00010991,2]
[346635395,1735135841847,-500.0,0.00010991,2]
[346635396,1735135841857,-500.0,0.00010991,2]
[346635397,1735135841866,-500.0,0.00010991,2]
[346635398,1735135841876,-500.0,0.00010991,2]
[346635399,1735135841885,-500.0,0.00010991,2]
[346635400,1735135841895,-1117.03,0.00010991,2]
[346635401,1735135841905,-488.93895917,0.00010991,2]
[346635408,1735135842823,-11.06104083,0.00010991,2]
[346635411,1735135842833,-1147.93,0.00010991,2]
[346635412,1735135842842,-279.4264468,0.00010991,2]
[346635413,1735135842855,-742.9235532,0.00010991,2]
[346635414,1735135842864,-975.94,0.00010991,2]
[346635415,1735135842874,-576.86,0.00010991,2]
[346635416,1735135842884,-500.0,0.00010991,2]
[346635417,1735135842893,-500.0,0.00010991,2]
[346635418,1735135842903,-561.58,0.00010991,2]
[346635419,1735135842912,-500.0,0.00010991,2]
[346635420,1735135842921,-1820.895621,0.00010991,2]
[346635422,1735135842947,-197.494379,0.00010991,2]
[346635423,1735135842956,-500.0,0.00010991,2]
[346635424,1735135842965,-672.65,0.00010991,2]